bitfinex/quotes_BTCUSD_20230118
["timestamp","ask_amount","ask_price","bid_price","bid_amount"]
[1674083630505,0.38838712,20762.0,20761.0,0.1243]
[1674083630817,0.11536387,20762.0,20761.0,0.0085]
[1674083631072,0.11536387,20762.0,20760.0,0.0085]
[1674083631340,0.28838712,20763.0,20761.0,0.001]
[1674083631620,0.077,20762.0,20761.0,0.001]
[1674083632166,0.11536387,20763.0,20760.0,0.0085]
[1674083632416,0.19236387,20763.0,20761.0,0.001]
[1674083632675,0.11536387,20763.0,20760.0,0.0085]
[1674083632952,0.077,20762.0,20761.0,0.001]
[1674083633258,0.11536387,20763.0,20760.0,0.0085]
[1674083633516,0.077,20763.0,20761.0,1.18821673]
[1674083633794,0.077,20763.0,20762.0,0.342604]
[1674083634816,0.077,20763.0,20762.0,0.824253]
[1674083635064,0.00674741,20766.0,20762.0,0.824253]
[1674083635329,0.077,20763.0,20762.0,0.490149]
[1674083635593,0.00674741,20766.0,20762.0,1.298141]
[1674083635899,0.07,20763.0,20762.0,2.02681129]
[1674083636123,0.07,20763.0,20762.0,2.35025629]
[1674083636628,0.00674741,20766.0,20762.0,2.45025629]
[1674083636888,0.00674741,20766.0,20765.0,0.0789]
[1674083637194,0.00674741,20766.0,20765.0,1.85211]
[1674083637419,0.00674741,20766.0,20765.0,2.24238193]
[1674083638466,0.00674741,20766.0,20765.0,2.26338193]
[1674083638467,0.01374741,20766.0,20765.0,2.26338193]
[1674083639240,0.00674741,20766.0,20765.0,2.24238193]
[1674083639532,0.01374741,20766.0,20765.0,2.26338193]
[1674083641594,0.01374741,20766.0,20765.0,2.18448193]
[1674083642091,0.01374741,20766.0,20765.0,2.16348193]
[1674083642399,0.00674741,20766.0,20765.0,2.16348193]
[1674083642632,0.01274741,20766.0,20765.0,2.18448193]
[1674083643922,0.01274741,20766.0,20765.0,2.48448193]
[1674083644432,0.01274741,20766.0,20765.0,2.18448193]
[1674083645720,0.01274741,20766.0,20765.0,2.48448193]
[1674083645978,0.01274741,20766.0,20765.0,2.56338193]
[1674083647268,0.01274741,20766.0,20765.0,2.26338193]
[1674083647797,0.01274741,20766.0,20765.0,2.56338193]
[1674083648062,0.01274741,20766.0,20765.0,2.64228193]
[1674083649135,0.01265769,20766.0,20765.0,2.64228193]
[1674083653927,0.01265769,20766.0,20765.0,2.56338193]
[1674083656284,0.01265769,20766.0,20765.0,2.17598193]
[1674083657628,0.01265769,20766.0,20765.0,2.18448193]
[1674083665006,1.09176361,20771.0,20765.0,2.18448193]
[1674083665254,1.09176361,20771.0,20766.0,0.332023]
[1674083665504,1.28608458,20771.0,20766.0,0.0085]
[1674083665778,0.320823,20770.0,20766.0,0.97158]
[1674083666020,2.17002248,20771.0,20766.0,0.97158]
[1674083666285,2.36435945,20771.0,20766.0,0.97158]
[1674083666532,0.1,20770.0,20766.0,0.97158]
[1674083666781,0.19432097,20770.0,20766.0,0.97158]
[1674083667127,1.72263848,20771.0,20766.0,0.97158]
[1674083667326,1.93795945,20771.0,20766.0,0.97458]
[1674083667599,1.91695945,20771.0,20766.0,0.97158]
[1674083667847,0.121,20770.0,20766.0,0.97458]
[1674083668120,0.30968484,20770.0,20766.0,0.97158]
[1674083668425,0.30968484,20770.0,20766.0,0.97458]
[1674083668959,0.11536387,20770.0,20766.0,0.97458]
[1674083669211,1.91666073,20771.0,20766.0,0.97458]
[1674083669458,0.11536387,20770.0,20766.0,0.97158]
[1674083669718,0.1,20769.0,20766.0,0.97158]
[1674083669968,0.11536387,20769.0,20766.0,0.97158]
[1674083670477,0.28838712,20769.0,20766.0,0.493047]
[1674083670727,0.11536387,20769.0,20766.0,0.490047]
[1674083670980,0.13636387,20769.0,20766.0,0.493047]
[1674083671260,0.30938712,20769.0,20766.0,0.493047]
[1674083671512,0.30938712,20769.0,20766.0,0.0115]
[1674083671513,0.79087812,20769.0,20766.0,0.0115]
[1674083671768,0.53417787,20768.0,20766.0,0.0115]
[1674083672020,1.09779712,20767.0,20766.0,0.003]
[1674083672314,1.94581776,20767.0,20766.0,0.003]
[1674083672514,2.0611427,20767.0,20766.0,0.003]
[1674083672779,2.65804843,20767.0,20766.0,0.003]
[1674083673284,3.10415803,20767.0,20766.0,0.003]
[1674083673597,3.18305803,20767.0,20766.0,0.003]
[1674083673804,2.95236036,20767.0,20766.0,0.005]
[1674083674057,3.25236036,20767.0,20761.0,0.481654]
[1674083674309,0.11534678,20765.0,20761.0,0.481654]
[1674083674560,0.63379275,20764.0,20761.0,0.481654]
[1674083674813,0.30966775,20764.0,20762.0,0.0085]
[1674083675074,0.11534678,20764.0,20762.0,0.0085]
[1674083675331,0.59694978,20764.0,20761.0,0.0095]
[1674083675613,0.327873,20763.0,20761.0,0.0095]
[1674083675877,0.67564978,20764.0,20761.0,0.0095]
[1674083676191,0.560303,20764.0,20763.0,0.0146271]
[1674083676440,0.560303,20764.0,20763.0,0.0231271]
[1674083676728,0.883153,20764.0,20763.0,0.0231271]
[1674083676979,1.48010178,20764.0,20763.0,0.0146271]
[1674083677534,1.56410178,20764.0,20763.0,0.0156271]
[1674083678036,1.56410178,20764.0,20763.0,0.001]
[1674083680445,1.448755,20764.0,20763.0,0.001]
[1674083680723,1.56410178,20764.0,20763.0,0.001]
[1674083681248,1.86410178,20764.0,20763.0,0.001]
[1674083681518,1.748755,20764.0,20763.0,0.001]
[1674083682042,1.448755,20764.0,20763.0,0.001]
[1674083682551,1.548755,20764.0,20763.0,0.001]
[1674083682845,1.848755,20764.0,20763.0,0.001]
[1674083683112,1.748755,20764.0,20763.0,0.001]
[1674083683383,1.92177517,20764.0,20763.0,0.001]
[1674083683895,2.02177517,20764.0,20763.0,0.001]
[1674083684373,2.13685809,20764.0,20763.0,0.001]
[1674083684652,2.02177517,20764.0,20763.0,0.001]
[1674083685152,2.03685911,20764.0,20763.0,0.001]
[1674083685425,1.86383894,20764.0,20763.0,0.001]
[1674083685686,1.96383894,20764.0,20763.0,0.001]
[1674083685949,1.86383894,20764.0,20763.0,0.001]
[1674083686207,1.96383894,20764.0,20763.0,0.001]
[1674083686465,1.848755,20764.0,20763.0,0.001]
[1674083687020,1.96383894,20764.0,20763.0,0.001]
[1674083687277,1.86383894,20764.0,20763.0,0.00092477]
[1674083688118,1.748755,20764.0,20763.0,0.00092477]
[1674083688402,1.74814626,20764.0,20763.0,0.00092477]
[1674083688666,1.84814626,20764.0,20763.0,0.00092477]
[1674083689221,0.00023693,20762.0,20757.0,0.36225539]
[1674083689516,0.0784,20760.0,20758.0,0.0085]
[1674083689780,0.344341,20759.0,20758.0,0.0085]
[1674083690052,0.0784,20760.0,20758.0,0.0085]
[1674083690569,0.329073,20759.0,20757.0,0.36225539]
[1674083690839,0.330328,20758.0,20757.0,0.36225539]
[1674083691113,0.560115,20760.0,20757.0,0.36225539]
[1674083691384,0.651115,20760.0,20757.0,0.36225539]
[1674083691644,0.312619,20759.0,20758.0,0.0085]
[1674083691911,0.403619,20759.0,20758.0,0.0085]
[1674083692204,0.312619,20759.0,20758.0,0.0085]
[1674083692742,0.312619,20759.0,20756.0,0.0135744]
[1674083692743,0.391519,20759.0,20756.0,0.0135744]
[1674083693003,1.376832,20758.0,20756.0,0.0135744]
[1674083693265,0.325746,20757.0,20756.0,0.0135744]
[1674083693837,1.042382,20758.0,20756.0,0.0135744]
[1674083694372,0.31207,20757.0,20756.0,0.0135744]
[1674083694633,0.091,20757.0,20756.0,0.0220744]
[1674083694919,1.042382,20758.0,20756.0,0.0220744]
[1674083695185,0.315549,20757.0,20756.0,0.0220744]
[1674083695700,0.406549,20757.0,20756.0,0.0220744]
[1674083695958,1.042382,20758.0,20756.0,0.0220744]
[1674083696470,0.331458,20757.0,20756.0,0.0220744]
[1674083696733,1.042382,20758.0,20756.0,0.0220744]
[1674083696979,1.133382,20758.0,20756.0,0.0220744]
[1674083697240,0.327065,20757.0,20756.0,0.0220744]
[1674083697744,0.317613,20757.0,20756.0,0.0220744]
[1674083698249,1.042382,20758.0,20756.0,0.0220744]
[1674083698504,0.091,20757.0,20756.0,0.0220744]
[1674083698980,0.414204,20757.0,20756.0,0.0220744]
[1674083699241,0.091,20757.0,20756.0,0.0220744]
[1674083699498,0.411531,20757.0,20756.0,0.0220744]
[1674083699751,0.320531,20757.0,20756.0,0.0220744]
[1674083700268,0.338238,20757.0,20756.0,0.0220744]
[1674083700530,0.091,20757.0,20756.0,0.0220744]
[1674083701062,0.409475,20757.0,20756.0,0.0220744]
[1674083701600,0.091,20757.0,20756.0,0.0220744]
[1674083702390,0.402577,20757.0,20756.0,0.0220744]
[1674083703440,0.091,20757.0,20756.0,0.0220744]
[1674083705027,0.091,20757.0,20756.0,0.3431954]
[1674083706071,0.091,20757.0,20756.0,0.0220744]
[1674083707650,0.091,20757.0,20756.0,0.3472064]
[1674083709441,0.09089295,20757.0,20756.0,0.3472064]
[1674083710494,0.09089295,20757.0,20756.0,0.0220744]
[1674083710742,0.09089295,20757.0,20756.0,0.0220744]
[1674083719287,0.20588093,20757.0,20756.0,0.0220744]
[1674083720149,0.09089295,20757.0,20756.0,0.0220744]
[1674083720884,0.20588093,20757.0,20756.0,0.0220744]
[1674083721152,0.09089295,20757.0,20756.0,0.0220744]
[1674083721412,0.20588093,20757.0,20756.0,0.0220744]
[1674083721667,0.09089295,20757.0,20756.0,0.0220744]
[1674083723188,0.09089295,20757.0,20756.0,0.03730081]
[1674083723689,0.09089295,20757.0,20756.0,0.36496381]
[1674083723942,0.09089295,20757.0,20756.0,0.48106381]
[1674083724458,0.09089295,20757.0,20756.0,0.15340081]
[1674083725033,0.09089295,20757.0,20756.0,0.03730081]
[1674083725456,0.09089295,20757.0,20756.0,0.37307981]
[1674083725700,0.09089295,20757.0,20756.0,0.36087981]
[1674083726198,0.09089295,20757.0,20756.0,0.03730081]
[1674083726713,0.09089295,20757.0,20756.0,0.35318981]
[1674083727469,0.09089295,20757.0,20756.0,0.03730081]
[1674083728236,0.09089295,20757.0,20756.0,0.36409181]
[1674083728958,0.09089295,20757.0,20756.0,0.46409181]
[1674083729210,0.09089295,20757.0,20756.0,0.3488654]
[1674083734205,0.09089295,20757.0,20756.0,0.3483644]
[1674083735485,0.09089295,20757.0,20756.0,0.8301524]
[1674083735999,0.09089295,20757.0,20756.0,0.9454524]
[1674083738364,0.09089295,20757.0,20756.0,1.4272404]
[1674083738616,0.09089295,20757.0,20756.0,1.5433404]
[1674083738927,0.09089295,20757.0,20756.0,2.05822994]
[1674083739147,0.09079972,20757.0,20756.0,2.05822994]
[1674083739661,0.09079972,20757.0,20756.0,2.2282936]
[1674083739912,0.09079972,20757.0,20756.0,2.46712141]
[1674083740165,0.09079972,20757.0,20756.0,2.35223187]
[1674083740425,0.09079972,20757.0,20756.0,2.22852036]
[1674083740682,0.11522491,20762.0,20757.0,0.429175]
[1674083740937,0.11522491,20762.0,20758.0,1.411583]
[1674083741196,0.28824508,20762.0,20759.0,0.322792]
[1674083741456,0.28824508,20762.0,20760.0,0.0085]
[1674083741728,0.11522491,20762.0,20760.0,0.0085]
[1674083742768,0.12722491,20762.0,20760.0,0.0085]
[1674083743026,0.00023693,20762.0,20761.0,0.32577]
[1674083743276,0.19822491,20762.0,20761.0,0.0085]
[1674083743541,0.08323693,20762.0,20761.0,0.0085]
[1674083743794,0.08323693,20762.0,20760.0,0.0095]
[1674083744054,0.00023693,20762.0,20760.0,0.0085]
[1674083744305,0.08323693,20762.0,20761.0,0.001]
[1674083745068,0.00023693,20762.0,20760.0,0.590194]
[1674083745337,0.08323693,20762.0,20760.0,0.491194]
[1674083745594,0.08323693,20762.0,20761.0,0.338653]
[1674083745845,0.08323693,20762.0,20761.0,0.0085]
[1674083746352,0.00023693,20762.0,20761.0,0.0085]
[1674083746619,0.08323693,20762.0,20761.0,0.0095]
[1674083746863,0.08323693,20762.0,20761.0,1.087744]
[1674083747120,0.00023693,20762.0,20761.0,1.411343]
[1674083747636,0.08323693,20762.0,20761.0,1.411343]
[1674083748197,0.16523693,20762.0,20761.0,1.412343]
[1674083748905,0.16523693,20762.0,20761.0,1.512343]
[1674083749160,0.16523693,20762.0,20761.0,1.412343]
[1674083759189,0.16512424,20762.0,20761.0,1.412343]
[1674083762803,0.165,20762.0,20761.0,1.412343]
[1674083763847,0.165,20762.0,20761.0,1.512343]
[1674083764109,0.165,20762.0,20761.0,1.928243]
[1674083768839,0.165,20762.0,20761.0,3.55079938]
[1674083769348,3.7e-07,20762.0,20761.0,3.36673067]
[1674083769607,0.00764147,20766.0,20763.0,0.1]
[1674083769863,0.00764147,20766.0,20765.0,0.2322]
[1674083770119,0.00764147,20766.0,20765.0,1.816737]
[1674083770374,0.00764147,20766.0,20765.0,1.825237]
[1674083770639,0.00764147,20766.0,20765.0,2.30579656]
[1674083771111,0.00764147,20766.0,20765.0,2.34579656]
[1674083771401,0.00764147,20766.0,20765.0,2.20579656]
[1674083772431,0.00764147,20766.0,20765.0,2.34579656]
[1674083776288,0.00764147,20766.0,20765.0,3.14409656]
[1674083776475,0.00764147,20766.0,20765.0,3.26019656]
[1674083776737,0.00666361,20771.0,20767.0,0.5082]
[1674083777045,0.00666361,20771.0,20770.0,0.1161]
[1674083777303,0.00666361,20771.0,20770.0,1.913033]
[1674083777590,0.00666361,20771.0,20770.0,2.213033]
[1674083778071,0.00666361,20771.0,20770.0,1.913033]
[1674083778581,0.00666361,20771.0,20770.0,1.982033]
[1674083779618,0.00666361,20771.0,20770.0,2.398133]
[1674083780374,0.00666361,20771.0,20770.0,2.098133]
[1674083781173,0.00666361,20771.0,20770.0,2.09803864]
[1674083781455,0.00666361,20771.0,20770.0,2.02903864]
[1674083781690,0.00666361,20771.0,20770.0,2.46903864]
[1674083782189,0.00666361,20771.0,20770.0,2.30903864]
[1674083783740,0.00666361,20771.0,20770.0,2.60903864]
[1674083784245,0.00666361,20771.0,20770.0,2.30903864]
[1674083785038,0.00666361,20771.0,20770.0,2.60903864]
[1674083785553,0.00666361,20771.0,20770.0,2.19293864]
[1674083785821,0.00666361,20771.0,20770.0,2.05393864]
[1674083786083,0.00666361,20771.0,20770.0,2.17003864]
[1674083789686,0.00666361,20771.0,20770.0,1.44797]
[1674083789944,0.10664361,20771.0,20770.0,1.103926]
[1674083790210,0.10664361,20771.0,20770.0,0.141]
[1674083790770,0.44220061,20771.0,20770.0,0.141]
[1674083791851,0.10664361,20771.0,20770.0,0.141]
[1674083792288,0.32816761,20771.0,20770.0,0.1495]
[1674083792549,0.32292661,20771.0,20770.0,0.1495]
[1674083792813,0.00666361,20771.0,20770.0,0.1495]
[1674083793069,0.34458761,20771.0,20770.0,0.1495]
[1674083795136,0.00666361,20771.0,20770.0,0.1495]
[1674083796470,0.12276361,20771.0,20770.0,0.630963]
[1674083798542,0.12276361,20771.0,20770.0,1.112426]
[1674083799986,0.12276361,20771.0,20770.0,1.45146]
[1674083801127,0.12276361,20771.0,20770.0,1.112426]
[1674083802039,0.12276361,20771.0,20770.0,1.432275]
[1674083802489,0.12276361,20771.0,20770.0,1.112426]
[1674083805075,0.00666361,20771.0,20770.0,1.412518]
[1674083805334,0.00666361,20771.0,20770.0,1.429513]
[1674083811398,0.00666361,20771.0,20770.0,1.529513]
[1674083811648,0.00666361,20771.0,20770.0,1.429513]
[1674083812506,0.00659892,20771.0,20770.0,1.429513]
[1674083813235,0.00659892,20771.0,20770.0,1.729513]
[1674083816392,0.00659892,20771.0,20770.0,1.429513]
[1674083828744,0.00659892,20771.0,20770.0,1.729513]
[1674083830755,1.74098158,20771.0,20767.0,0.11491525]
[1674083831003,1.74098158,20771.0,20764.0,0.481588]
[1674083831004,0.63652495,20770.0,20764.0,0.481588]
[1674083831252,0.11498798,20768.0,20763.0,0.92724535]
[1674083831504,0.51454197,20767.0,20761.0,0.12714575]
[1674083831751,0.1161,20763.0,20761.0,0.4938945]
[1674083832030,0.19432097,20762.0,20761.0,0.0122305]
[1674083832529,0.19432097,20762.0,20761.0,0.0422305]
[1674083832530,0.2305,20762.0,20761.0,0.0422305]
[1674083833354,0.562536,20762.0,20761.0,0.0422305]
[1674083833548,0.678636,20762.0,20761.0,0.0122305]
[1674083833802,1.161285,20762.0,20761.0,0.0162305]
[1674083834297,2.098315,20762.0,20761.0,0.0162305]
[1674083834542,2.098315,20762.0,20761.0,0.0122305]
[1674083834543,2.51089954,20762.0,20761.0,0.0122305]
[1674083834785,3.56789954,20762.0,20761.0,0.0152305]
[1674083835037,3.50689954,20762.0,20761.0,0.0122305]
[1674083835292,3.56789954,20762.0,20761.0,0.0152305]
[1674083835539,4.04510123,20762.0,20761.0,0.0030305]
[1674083835790,3.98410123,20762.0,20756.0,0.0135744]
[1674083836036,0.232,20757.0,20756.0,0.0135744]
[1674083836289,0.555013,20757.0,20756.0,0.0135744]
[1674083837070,0.555013,20757.0,20756.0,0.0220744]
[1674083837571,0.232,20757.0,20756.0,0.0220744]
[1674083837825,0.296,20757.0,20756.0,0.0250744]
[1674083838076,0.1799,20757.0,20756.0,0.0250744]
[1674083839290,0.510898,20757.0,20756.0,0.0250744]
[1674083840046,0.1799,20757.0,20756.0,0.0250744]
[1674083840299,0.535169,20757.0,20756.0,0.0250744]
[1674083840800,0.1799,20757.0,20756.0,0.0250744]
[1674083841060,0.495475,20757.0,20756.0,0.0250744]
[1674083842320,0.502554,20757.0,20756.0,0.0250744]
[1674083842570,0.518546,20757.0,20756.0,0.0250744]
[1674083843052,0.064,20757.0,20756.0,0.0250744]
[1674083843555,0.39945,20757.0,20756.0,0.0250744]
[1674083844524,0.391315,20757.0,20756.0,0.0250744]
[1674083844764,0.064,20757.0,20756.0,0.0250744]
[1674083847208,0.40208,20757.0,20756.0,0.0250744]
[1674083847724,0.064,20757.0,20756.0,0.0250744]
[1674083848760,0.392592,20757.0,20756.0,0.0250744]
[1674083855219,0.874357,20757.0,20756.0,0.0250744]
[1674083855919,0.953257,20757.0,20756.0,0.0250744]
[1674083857439,0.624665,20757.0,20756.0,0.0250744]
[1674083857689,0.949344,20757.0,20756.0,0.0250744]
[1674083860429,0.949344,20757.0,20756.0,0.02495447]
[1674083864336,0.870444,20757.0,20756.0,0.02495447]
[1674083865321,0.545765,20757.0,20756.0,0.02495447]
[1674083865578,0.866448,20757.0,20756.0,0.02495447]
[1674083866302,0.891293,20757.0,20756.0,0.02495447]
[1674083867302,0.57061,20757.0,20756.0,0.02495447]
[1674083868310,1.001479,20757.0,20756.0,0.02495447]
[1674083869803,1.001479,20757.0,20756.0,0.04495447]
[1674083872537,1.00141716,20757.0,20756.0,0.04495447]
[1674083873264,1.11640514,20757.0,20756.0,0.04495447]
[1674083873753,1.00141716,20757.0,20756.0,0.04495447]
[1674083874066,2.08020098,20757.0,20756.0,0.04495447]
[1674083874548,2.25322115,20757.0,20756.0,0.04495447]
[1674083875503,2.25322115,20757.0,20756.0,0.02495447]
[1674083875755,2.08020098,20757.0,20756.0,0.02495447]
[1674083876006,2.25322115,20757.0,20756.0,0.02495447]
[1674083876264,2.13823317,20757.0,20756.0,0.02495447]
[1674083876518,2.36892674,20757.0,20756.0,0.02495447]
[1674083876774,2.25370711,20757.0,20756.0,0.02495447]
[1674083877944,2.13823317,20757.0,20756.0,0.02495447]
[1674083878441,2.36892674,20757.0,20756.0,0.02495447]
[1674083879877,2.36892674,20757.0,20756.0,0.01645447]
[1674083879878,3.28279533,20757.0,20756.0,0.01645447]
[1674083880104,3.05210176,20757.0,20756.0,0.01645447]
[1674083880410,3.28309519,20757.0,20756.0,0.01645447]
[1674083880673,3.28311875,20757.0,20756.0,0.01645447]
[1674083880928,3.05210176,20757.0,20756.0,0.01645447]
[1674083881709,3.16820176,20757.0,20756.0,0.01645447]
[1674083881967,2.87986664,20757.0,20756.0,0.01645447]
[1674083882777,3.16863074,20757.0,20756.0,0.01645447]
[1674083883086,3.39963737,20757.0,20756.0,0.01645447]
[1674083883858,2.79405779,20757.0,20756.0,0.01645447]
[1674083884297,3.39909827,20757.0,20756.0,0.01645447]
[1674083884562,3.16811848,20757.0,20756.0,0.01645447]
[1674083885094,3.39910279,20757.0,20756.0,0.01645447]
[1674083885365,2.79406231,20757.0,20756.0,0.01645447]
[1674083885603,3.39913748,20757.0,20756.0,0.01645447]
[1674083886390,3.16815317,20757.0,20756.0,0.01645447]
[1674083889100,4.48495705,20757.0,20756.0,0.01645447]
[1674083889393,5.01499281,20757.0,20756.0,0.01645447]
[1674083889679,0.09368624,20755.0,20754.0,0.01376338]
[1674083889953,3.06445208,20755.0,20754.0,0.01376338]
[1674083890220,3.38076315,20755.0,20754.0,0.01376338]
[1674083890477,3.66955291,20755.0,20754.0,0.01376338]
[1674083891016,3.90051041,20755.0,20754.0,0.01376338]
[1674083891303,3.66955291,20755.0,20754.0,0.01376338]
[1674083891827,4.06155291,20755.0,20754.0,0.01376338]
[1674083892350,4.06146753,20755.0,20754.0,0.01376338]
[1674083892863,3.76146753,20755.0,20754.0,0.01376338]
[1674083893133,4.2923558,20755.0,20754.0,0.01376338]
[1674083893443,3.99235532,20755.0,20754.0,0.01376338]
[1674083894248,4.06146753,20755.0,20754.0,0.01376338]
[1674083894507,3.64606753,20755.0,20754.0,0.01376338]
[1674083894805,3.87695406,20755.0,20754.0,0.01376338]
[1674083895618,3.44505936,20755.0,20754.0,0.01376338]
[1674083895892,3.27193861,20755.0,20754.0,0.01376338]
[1674083896164,3.46326369,20755.0,20754.0,0.01376338]
[1674083896451,4.13616211,20755.0,20754.0,0.01376338]
[1674083896712,3.84745773,20755.0,20754.0,0.01376338]
[1674083897522,3.65613265,20755.0,20754.0,0.01376338]
[1674083897805,4.37425434,20755.0,20754.0,0.01376338]
[1674083898313,5.02003888,20755.0,20754.0,0.01376338]
[1674083898877,5.36658791,20755.0,20754.0,0.03376338]
[1674083899177,5.8491901,20755.0,20754.0,0.03376338]
[1674083899716,5.8491901,20755.0,20752.0,0.0150474]
[1674083899717,0.03711605,20753.0,20752.0,0.0150474]
[1674083899972,4.32586069,20753.0,20752.0,0.0150474]
[1674083900452,4.62586069,20753.0,20752.0,0.0150474]
[1674083900707,5.10846288,20753.0,20752.0,0.0150474]
[1674083901235,5.54648253,20753.0,20752.0,0.0150474]
[1674083901494,0.01504,20752.0,20748.0,0.0139428]
[1674083901748,2.01634553,20751.0,20748.0,0.0139428]
[1674083902007,0.5082,20749.0,20748.0,0.0139428]
[1674083902277,0.5082,20747.0,20745.0,0.01487105]
[1674083902541,0.5082,20745.0,20734.0,0.40523381]
[1674083902813,0.1159,20740.0,20735.0,0.42807723]
[1674083903083,0.795624,20739.0,20735.0,0.42807723]
[1674083903339,0.19432097,20738.0,20735.0,0.42807723]
[1674083903594,0.482194,20739.0,20735.0,0.42807723]
[1674083903595,0.19432097,20737.0,20735.0,0.42807723]
[1674083903855,0.67651497,20739.0,20735.0,0.37807723]
[1674083904394,0.598078,20740.0,20734.0,0.2202549]
[1674083904657,0.02884555,20738.0,20734.0,0.2202549]
[1674083904920,0.061,20737.0,20735.0,0.0085]
[1674083905191,0.02884555,20738.0,20735.0,0.0085]
[1674083905744,0.02884555,20738.0,20735.0,0.39945993]
[1674083905991,0.004,20738.0,20737.0,0.1]
[1674083906258,0.004,20738.0,20737.0,0.269105]
[1674083906522,0.004,20738.0,20737.0,0.285205]
[1674083906993,0.02752538,20740.0,20737.0,0.285205]
[1674083907011,0.02752538,20740.0,20737.0,0.1246]
[1674083907252,0.48212,20742.0,20738.0,0.1161]
[1674083907512,0.48212,20742.0,20738.0,0.46577804]
[1674083908045,0.091,20740.0,20738.0,0.46577804]
[1674083908287,1.03590921,20743.0,20739.0,0.1246]
[1674083908288,0.02567769,20743.0,20739.0,0.1246]
[1674083908549,0.092,20742.0,20740.0,0.439603]
[1674083908804,0.092,20742.0,20740.0,0.1156]
[1674083909067,0.02567769,20743.0,20740.0,0.1156]
[1674083909875,0.51657765,20746.0,20742.0,0.2315]
[1674083910134,0.03454765,20746.0,20744.0,0.1157]
[1674083910846,0.03454765,20746.0,20745.0,0.1246]
[1674083911191,0.061,20746.0,20745.0,0.443772]
[1674083911444,0.0339252,20748.0,20745.0,0.443772]
[1674083911698,0.0339252,20748.0,20745.0,0.0085]
[1674083911940,0.0339252,20748.0,20746.0,0.45243]
[1674083912189,0.481932,20750.0,20746.0,0.1161]
[1674083912705,0.68626692,20750.0,20746.0,0.1161]
[1674083913199,0.091,20748.0,20746.0,0.1161]
[1674083913453,0.68626692,20750.0,20746.0,0.1161]
[1674083913703,0.77726692,20750.0,20746.0,0.1161]
[1674083913948,0.68626692,20750.0,20746.0,0.1161]
[1674083914204,0.091,20748.0,20746.0,0.1161]
[1674083914459,0.481932,20750.0,20746.0,0.1161]
[1674083914708,0.572932,20750.0,20746.0,0.21592327]
[1674083914961,0.481932,20750.0,20748.0,0.1156]
[1674083915488,0.51267045,20751.0,20748.0,0.1156]
[1674083916497,0.091,20750.0,20748.0,0.1156]
[1674083916761,0.02761805,20749.0,20748.0,0.1156]
[1674083917019,0.02761805,20749.0,20748.0,0.1241]
[1674083918042,0.11961805,20749.0,20748.0,0.1241]
[1674083919062,0.02761805,20749.0,20748.0,0.1241]
[1674083919330,0.11861805,20749.0,20748.0,0.1241]
[1674083919823,0.43841005,20749.0,20748.0,0.1241]
[1674083920073,0.34631805,20749.0,20748.0,0.1241]
[1674083920317,0.11861805,20749.0,20748.0,0.1241]
[1674083922289,0.11861805,20749.0,20748.0,0.0085]
[1674083922542,0.43906605,20749.0,20746.0,0.0085]
[1674083922795,0.11861805,20749.0,20746.0,0.0085]
[1674083923553,0.02761805,20749.0,20746.0,0.0085]
[1674083923811,0.08861805,20749.0,20746.0,0.0085]
[1674083925633,0.40972623,20749.0,20745.0,0.48246557]
[1674083925969,0.89167923,20749.0,20745.0,0.48246557]
[1674083926446,0.338619,20748.0,20745.0,0.48246557]
[1674083926707,0.481982,20748.0,20745.0,0.48246557]
[1674083926964,0.481982,20748.0,20746.0,0.0085]
[1674083927582,0.317176,20747.0,20746.0,0.0085]
[1674083927799,0.481982,20748.0,20746.0,0.0085]
[1674083928236,0.330511,20747.0,20746.0,0.0085]
[1674083928461,0.481982,20748.0,20746.0,0.0085]
[1674083928462,0.572982,20748.0,20746.0,0.0085]
[1674083928682,0.481982,20748.0,20746.0,0.0085]
[1674083929131,0.572982,20748.0,20746.0,0.0085]
[1674083929386,1.054956,20748.0,20746.0,0.0085]
[1674083929611,0.330502,20747.0,20746.0,0.0085]
[1674083930353,0.806438,20747.0,20746.0,0.0085]
[1674083931261,0.897438,20747.0,20746.0,0.0085]
[1674083931481,0.919434,20747.0,20746.0,0.0085]
[1674083932143,0.919434,20747.0,20745.0,0.0085]
[1674083932394,0.318168,20746.0,20745.0,0.0085]
[1674083932583,0.315802,20746.0,20745.0,0.0085]
[1674083932808,0.572997,20747.0,20745.0,0.0085]
[1674083933023,0.342829,20746.0,20745.0,0.0085]
[1674083933470,0.572997,20747.0,20745.0,0.0085]
[1674083933712,0.43339,20746.0,20745.0,0.0085]
[1674083933932,0.81541,20746.0,20744.0,0.079]
[1674083934148,0.328351,20745.0,20744.0,0.079]
[1674083934383,0.328351,20745.0,20744.0,0.0875]
[1674083934607,0.48202,20746.0,20744.0,0.0875]
[1674083934834,0.335324,20745.0,20744.0,0.0875]
[1674083935298,0.091,20745.0,20744.0,0.0875]
[1674083935518,0.48202,20746.0,20744.0,0.0875]
[1674083935737,0.57302,20746.0,20744.0,0.0875]
[1674083935960,0.31955,20745.0,20744.0,0.0085]
[1674083936188,0.31955,20745.0,20743.0,0.0085]
[1674083936411,0.330942,20744.0,20743.0,0.0085]
[1674083936633,0.482039,20746.0,20743.0,0.0085]
[1674083937084,0.422495,20745.0,20743.0,0.0085]
[1674083937308,0.02618463,20745.0,20743.0,0.0085]
[1674083937584,0.091,20744.0,20743.0,0.0085]
[1674083937811,0.322575,20744.0,20743.0,0.0085]
[1674083938032,0.60823163,20745.0,20743.0,0.0085]
[1674083938253,0.50823163,20745.0,20743.0,0.0085]
[1674083938471,0.59923163,20745.0,20743.0,0.0085]
[1674083939382,0.33417,20744.0,20743.0,0.0085]
[1674083939604,0.59923163,20745.0,20743.0,0.0085]
[1674083940499,0.50823163,20745.0,20743.0,0.0085]
[1674083940743,0.091,20744.0,20743.0,0.0085]
[1674083940978,0.50823163,20745.0,20743.0,0.0085]
[1674083941880,0.091,20744.0,20743.0,0.0085]
[1674083942144,0.50823163,20745.0,20743.0,0.0085]
[1674083942365,0.59923163,20745.0,20743.0,0.0085]
[1674083943497,0.573047,20745.0,20743.0,0.0085]
[1674083948845,0.091,20745.0,20743.0,0.0085]
[1674083949101,0.091,20745.0,20744.0,0.419401]
[1674083949343,0.091,20745.0,20744.0,0.427901]
[1674083950100,0.482038,20746.0,20744.0,0.427901]
[1674083950348,0.482038,20746.0,20745.0,0.0085]